Workbook

Sheet 工程量清单说明
A1: 1. 工程量清单说明
A2: 1.1 本工程量清单是根据询比采购文件中包括的、有合同约束力的图纸以及有关工程量清单的国家标准、行业标准、合同条款中约定的工程量计算规则编制的。约定计量规则中没有的子目，其工程量按照有合同约束力的图纸所标示尺寸的理论净量计算。计量采用中华人民共和国法定计量单位。
A3: 1.2 本工程量清单应与询比采购文件中的响应人须知、通用合同条款、专用合同条款、技术规范及图纸等一起阅读和理解。
A4: 1.3 本工程量清单中所列工程数量是估算的或设计的预计数量，仅作为响应报价的共同基础，不能作为最终结算与支付的依据。实际支付应按实际完成的合格的工程量，由响应人按技术规范规定的计量方法，以监理人认可的尺寸、断面计量，按本工程量清单的单价和总额价计算支付金额；或者，根据具体情况，按合同条款第15.4款的规定，由监理人确定的单价或总额价计算支付额。
A5: 1.4 对作业和材料的一般说明或规定，未重复写入工程量清单内，在给工程量清单各子目标价前，应参阅第八章的有关内容。
A6: 1.5 工程量清单中所列工程量的变动，丝毫不会降低或影响合同条款的效力，也不免除承包人按规定的标准进行施工和修复缺陷的责任。
A7: 1.6 图纸中所列的工程数量表及数量汇总表仅是提供资料，不是工程量清单的外延。当图纸与工程量清单所列数量不一致时，以工程量清单所列数量作为报价的依据。
A8: 2. 响应报价说明
A9: 2.1 采购人将提供固化的工程量清单，响应人仅需在清单汇总表中合计栏填报响应总价（整数），即可完成响应工程量清单的编制，确定响应单价，并打印出响应工程量清单，编入响应文件。
A10: 2.2 除非合同另有规定，工程量清单中有标价的单价和总额价均已包括了为实施和完成合同工程所需的劳务、材料、机械、质检（自检）、安装、缺陷修复、管理、保险、规费、措施项目费用、税费、利润、通行费、建筑垃圾清运及其他项目费用等费用，以及合同明示或暗示的所有责任、义务和一般风险。
A11: 2.3 工程量清单中响应人没有填入单价或价格的子目，其费用视为已分摊在工程量清单中其他相关子目的单价或价格之中。承包人必须按监理人指示完成工程量清单中未填入单价或价格的子目，但不能得到结算与支付。
A12: 2.4 符合合同条款规定的全部费用应认为已被计入有标价的工程量清单所列各子目之中，未列子目不予计量的工作，其费用应视为已分摊在本合同工程的有关子目的单价或总额价之中。
A13: 2.5 响应人在响应报价时，应按采购人公布的最高响应限价第100章至第700章部分合计金额的3%以“不可预见费”的名称列入响应报价汇总表中。在该项工作内容发生并经监理人审核后，按专用合同条款、专用技术规范和工程量清单计量规则的有关规定计量与支付。
A14: 2.6 响应人在响应报价时，对列入工程量清单100章的安全生产费支付子目的报价等于批复建安费总和的2%。
A15: 2.7响应人用于本合同工程的各类装备的提供、运输、维护、拆卸、拼装等支付的费用，已包括在工程量清单的单价与总额价之中。
A16: 2.8工程量清单中各项金额均以人民币（元）结算。
A17: 2.9在工程量清单中标明的不可预见费，除合同另有规定外，应由监理人按合同条款第15.6条的规定，结合工程具体情况，报经发包人批准后指令全部或部分地使用，或者根本不予动用。
A18: 3. 计日工说明
A19: 本项目不使用计日工。
A20: 4. 其他说明
A21: 4.1工程量清单采用固化清单，与询比采购公告一同在《江西省交通投资集团南昌南管理中心》(http://www.jxgsdgzx.com)网站上发布。

Sheet 投标报价汇总表
A1: 南昌南管理中心苗圃基地建设工程施工投标报价汇总表
A2: 标段：SF
A3: 序号 | B3: 章次 | C3: 科目名称 | D3: 最高响应限制价（元） | E3: 响应报价(元) | F3: 备注
A4: 1 | B4: 100 | C4: 总则 | D4: =工程量清单!I7 -> 8008 | E4: =工程量清单!K7 -> 8008 | F4: 固定费用
A5: 2 | B5: 700 | C5: 绿化及环境保护设施 | D5: =工程量清单!I52 -> 386306 | E5: =工程量清单!K52 -> 0
A6: 3 | B6: 第100章至第700章合计 | D6: =SUM(D4:D5) -> 394314 | E6: =SUM(E4:E5) -> 8008
A7: 4 | B7: 不可预见费 | D7: =D6*0.03 -> 11829 | E7: =D7 -> 11829 | F7: 固定费用
A8: 5 | B8: 合计（5=3+4） | D8: =D6+D7 -> 406143 | E8: =E6+E7 -> 19837
A9: 6 | B9: 响应报价 | D9: 0 | H9: =(D9-E7-E4)/D5 -> -0.05135158651

Sheet 工程量清单
A1: 南昌南管理中心苗圃基地建设工程施工工程量清单
A2: 序号 | B2: 子目号 | C2: 细目名称 | D2: 计量规则 | E2: 项目内容 | F2: 单位 | G2: 数量 | H2: 上限价综合价（元） | J2: 响应综合价（元） | L2: 备注
H3: 单价 | I3: 合价 | J3: 单价 | K3: 合价
B4: 第100章 总则
A5: 102 | C5: 工程管理
A6: 1 | B6: 102-3 | C6: 安全生产费 | D6: 按相关规定和要求 | E6: 按照询比采购文件及合同条款规定落实安全生产 | F6: 项 | G6: 1 | H6: 8008 | I6: =G6*H6 -> 8008 | J6: 8008.00 | K6: =G6*J6 -> 8008
A7: 第100章小计（元） | I7: =SUM(I6) -> 8008 | K7: =SUM(K6) -> 8008
A8: 第700章 绿化及环境保护设施
A9: 702 | C9: 铺设表土
A10: 2 | B10: 702-1 | C10: 清表、整理绿化用地 | D10: 依据图纸所示，以m2为单位计量 | E10: 1、场地清理、整平、装卸；2、场内废料运送至制定地点 | F10: m2 | G10: 3539 | H10: 2.6 | I10: =G10*H10 -> 9201 | J10: =IF((H10*投标报价汇总表!$H$9<0),0,H10*投标报价汇总表!$H$9) -> 0.00 | K10: =G10*J10 -> 0 | L10: 含清运
A11: 3 | B11: 702-2 | C11: 换填种植土 | D11: 依据图纸所示，以m3为单位计量 | E11: 1、取土及运到施工区；2、施工现场内推运、铺填、找平、放坡等全部工程内容。 | F11: m3 | G11: 1336 | H11: 39.2 | I11: =G11*H11 -> 52371 | J11: =IF((H11*投标报价汇总表!$H$9<0),0,H11*投标报价汇总表!$H$9) -> 0.00 | K11: =G11*J11 -> 0
B12: 703 | C12: 撒播草种和铺植草皮
A13: 4 | B13: 703-1 | C13: 草坪 | D13: 依据图纸所示，以m2为单位计量 | E13: 1、修正边坡；2、铺设草皮；3、洒水；4、养护。 | F13: m2 | G13: 2249.4 | H13: 19.6 | I13: =G13*H13 -> 44088 | J13: =IF((H13*投标报价汇总表!$H$9<0),0,H13*投标报价汇总表!$H$9) -> 0.00 | K13: =G13*J13 -> 0 | L13: 台湾青，满铺
A14: 5 | B14: 703-2 | C14: 草籽撒播 | D14: 依据图纸所示，以m2为单位计量 | E14: 1、施肥；2、浇水；3、成活期养护。 | F14: m2 | G14: 520.9 | H14: 9 | I14: =G14*H14 -> 4688 | J14: =IF((H14*投标报价汇总表!$H$9<0),0,H14*投标报价汇总表!$H$9) -> 0.00 | K14: =G14*J14 -> 0 | L14: 狗牙根混播波斯菊
A15: 704 | C15: 种植乔木、灌木和攀绿植物
A16: 6 | B16: 704-1-a | C16: 榉树（Ф12，H600,P500) | D16: 依据图纸所示，以株为单位计量 | E16: 1、挖树穴；2、施肥；3、栽植、立支架、浇水、覆土；4、清理、成活期养护。 | F16: 株 | G16: 5 | H16: 1852.5 | I16: =G16*H16 -> 9263 | J16: =IF((H16*投标报价汇总表!$H$9<0),0,H16*投标报价汇总表!$H$9) -> 0.00 | K16: =G16*J16 -> 0 | L16: 全冠、三级以上分枝、树形优美、开展、枝叶茂盛
A17: 7 | B17: 704-1-b | C17: 乌桕（Ф13-15，H700,P550) | D17: 依据图纸所示，以株为单位计量 | E17: 1、挖树穴；2、施肥；3、栽植、立支架、浇水、覆土；4、清理、成活期养护。 | F17: 株 | G17: 2 | H17: 1862 | I17: 3724 | J17: =IF((H17*投标报价汇总表!$H$9<0),0,H17*投标报价汇总表!$H$9) -> 0.00 | K17: 0 | L17: 全冠、三级以上分枝、树形优美、开展、枝叶茂盛
A18: 8 | B18: 704-1-c | C18: 香樟（Ф13-15，H550,P400) | D18: 依据图纸所示，以株为单位计量 | E18: 1、挖树穴；2、施肥；3、栽植、立支架、浇水、覆土；4、清理、成活期养护。 | F18: 株 | G18: 8 | H18: 1764 | I18: 14112 | J18: =IF((H18*投标报价汇总表!$H$9<0),0,H18*投标报价汇总表!$H$9) -> 0.00 | K18: 0 | L18: 全冠、三级以上分枝、树形优美、开展、枝叶茂盛
A19: 9 | B19: 704-1-d | C19: 黄山栾树（Ф12-13，H650,P450) | D19: 依据图纸所示，以株为单位计量 | E19: 1、挖树穴；2、施肥；3、栽植、立支架、浇水、覆土；4、清理、成活期养护。 | F19: 株 | G19: 1 | H19: 1270 | I19: 1270 | J19: =IF((H19*投标报价汇总表!$H$9<0),0,H19*投标报价汇总表!$H$9) -> 0.00 | K19: 0 | L19: 全冠、三级以上分枝、树形优美、开展、枝叶茂盛
A20: 10 | B20: 704-1-e | C20: 丛生香泡（3杆以上，6-8/杆) | D20: 依据图纸所示，以株为单位计量 | E20: 1、挖树穴；2、施肥；3、栽植、立支架、浇水、覆土；4、清理、成活期养护。 | F20: 株 | G20: 1 | H20: 1940.4 | I20: 1940 | J20: =IF((H20*投标报价汇总表!$H$9<0),0,H20*投标报价汇总表!$H$9) -> 0.00 | K20: 0 | L20: 全冠、树形优美
A21: 11 | B21: 704-1-f | C21: 胡柚（H280,P200-250) | D21: 依据图纸所示，以株为单位计量 | E21: 1、挖树穴；2、施肥；3、栽植、立支架、浇水、覆土；4、清理、成活期养护。 | F21: 株 | G21: 2 | H21: 1935.5 | I21: 3871 | J21: =IF((H21*投标报价汇总表!$H$9<0),0,H21*投标报价汇总表!$H$9) -> 0.00 | K21: 0 | L21: 全冠、树形优美
A22: 12 | B22: 704-1-g | C22: 紫玉兰（Ф8，H300,180) | D22: 依据图纸所示，以株为单位计量 | E22: 1、挖树穴；2、施肥；3、栽植、立支架、浇水、覆土；4、清理、成活期养护。 | F22: 株 | G22: 6 | H22: 780 | I22: 4680 | J22: =IF((H22*投标报价汇总表!$H$9<0),0,H22*投标报价汇总表!$H$9) -> 0.00 | K22: 0 | L22: 全冠、树形优美
A23: 13 | B23: 704-1-h | C23: 金桂（H350,P280-300) | D23: 依据图纸所示，以株为单位计量 | E23: 1、挖树穴；2、施肥；3、栽植、立支架、浇水、覆土；4、清理、成活期养护。 | F23: 株 | G23: 9 | H23: 1881.6 | I23: 16934 | J23: =IF((H23*投标报价汇总表!$H$9<0),0,H23*投标报价汇总表!$H$9) -> 0.00 | K23: 0 | L23: 全冠、树形优美
A24: 14 | B24: 704-1-i | C24: 红枫（D8-9，H350,P350) | D24: 依据图纸所示，以株为单位计量 | E24: 1、挖树穴；2、施肥；3、栽植、立支架、浇水、覆土；4、清理、成活期养护。 | F24: 株 | G24: 3 | H24: 1800.5 | I24: 5402 | J24: =IF((H24*投标报价汇总表!$H$9<0),0,H24*投标报价汇总表!$H$9) -> 0.00 | K24: 0 | L24: 全冠、树形优美
A25: 15 | B25: 704-1-j | C25: 丛生紫薇（每株D：3（5株/丛) | D25: 依据图纸所示，以株为单位计量 | E25: 1、挖树穴；2、施肥；3、栽植、立支架、浇水、覆土；4、清理、成活期养护。 | F25: 株 | G25: 9 | H25: 975 | I25: 8775 | J25: =IF((H25*投标报价汇总表!$H$9<0),0,H25*投标报价汇总表!$H$9) -> 0.00 | K25: 0 | L25: 全冠、树形优美
A26: 16 | B26: 704-1-k | C26: 腊梅（H200,P150) | D26: 依据图纸所示，以株为单位计量 | E26: 1、挖树穴；2、施肥；3、栽植、立支架、浇水、覆土；4、清理、成活期养护。 | F26: 株 | G26: 3 | H26: 504.7 | I26: 1514 | J26: =IF((H26*投标报价汇总表!$H$9<0),0,H26*投标报价汇总表!$H$9) -> 0.00 | K26: 0 | L26: 全冠、树形优美
A27: 17 | B27: 704-1-l | C27: 垂丝海棠（Ф8，H250,P200) | D27: 依据图纸所示，以株为单位计量 | E27: 1、挖树穴；2、施肥；3、栽植、立支架、浇水、覆土；4、清理、成活期养护。 | F27: 株 | G27: 5 | H27: 1282.5 | I27: 6413 | J27: =IF((H27*投标报价汇总表!$H$9<0),0,H27*投标报价汇总表!$H$9) -> 0.00 | K27: 0 | L27: 全冠、树形优美
A28: 18 | B28: 704-1-m | C28: 茶花（D7-8) | D28: 依据图纸所示，以株为单位计量 | E28: 1、挖树穴；2、施肥；3、栽植、立支架、浇水、覆土；4、清理、成活期养护。 | F28: 株 | G28: 7 | H28: 1300 | I28: 9100 | J28: =IF((H28*投标报价汇总表!$H$9<0),0,H28*投标报价汇总表!$H$9) -> 0.00 | K28: 0 | L28: 全冠、树形优美
A29: 19 | B29: 704-2-a | C29: 红叶石楠球A(H150,P180) | D29: 依据图纸所示，以株为单位计量 | E29: 1、挖树穴；2、施肥；3、栽植、立支架、浇水、覆土；4、清理、成活期养护。 | F29: 株 | G29: 4 | H29: 573.3 | I29: 2293 | J29: =IF((H29*投标报价汇总表!$H$9<0),0,H29*投标报价汇总表!$H$9) -> 0.00 | K29: 0 | L29: 精品球、饱满、不脱脚
A30: 20 | B30: 704-2-b | C30: 红叶石楠球B(H130,P150) | D30: 依据图纸所示，以株为单位计量 | E30: 1、挖树穴；2、施肥；3、栽植、立支架、浇水、覆土；4、清理、成活期养护。 | F30: 株 | G30: 5 | H30: 315 | I30: 1575 | J30: =IF((H30*投标报价汇总表!$H$9<0),0,H30*投标报价汇总表!$H$9) -> 0.00 | K30: 0 | L30: 精品球、饱满、不脱脚
A31: 21 | B31: 704-2-c | C31: 海桐球（H130,P150) | D31: 依据图纸所示，以株为单位计量 | E31: 1、挖树穴；2、施肥；3、栽植、立支架、浇水、覆土；4、清理、成活期养护。 | F31: 株 | G31: 11 | H31: 318.5 | I31: 3504 | J31: =IF((H31*投标报价汇总表!$H$9<0),0,H31*投标报价汇总表!$H$9) -> 0.00 | K31: 0 | L31: 精品球、饱满、不脱脚
A32: 22 | B32: 704-2-d | C32: 金森女贞球（H130,P150) | D32: 依据图纸所示，以株为单位计量 | E32: 1、挖树穴；2、施肥；3、栽植、立支架、浇水、覆土；4、清理、成活期养护。 | F32: 株 | G32: 10 | H32: 318.5 | I32: 3185 | J32: =IF((H32*投标报价汇总表!$H$9<0),0,H32*投标报价汇总表!$H$9) -> 0.00 | K32: 0 | L32: 精品球、饱满、不脱脚
A33: 23 | B33: 704-2-e | C33: 银姬小腊球（H130,P160) | D33: 依据图纸所示，以株为单位计量 | E33: 1、挖树穴；2、施肥；3、栽植、立支架、浇水、覆土；4、清理、成活期养护。 | F33: 株 | G33: 7 | H33: 627.5 | I33: 4393 | J33: =IF((H33*投标报价汇总表!$H$9<0),0,H33*投标报价汇总表!$H$9) -> 0.00 | K33: 0 | L33: 精品球、饱满、不脱脚
A34: 24 | B34: 704-2-f | C34: 大叶黄杨球A（H150,P180) | D34: 依据图纸所示，以株为单位计量 | E34: 1、挖树穴；2、施肥；3、栽植、立支架、浇水、覆土；4、清理、成活期养护。 | F34: 株 | G34: 7 | H34: 440 | I34: 3080 | J34: =IF((H34*投标报价汇总表!$H$9<0),0,H34*投标报价汇总表!$H$9) -> 0.00 | K34: 0 | L34: 精品球、饱满、不脱脚
A35: 25 | B35: 704-2-g | C35: 大叶黄杨球B（H130,P150) | D35: 依据图纸所示，以株为单位计量 | E35: 1、挖树穴；2、施肥；3、栽植、立支架、浇水、覆土；4、清理、成活期养护。 | F35: 株 | G35: 4 | H35: 348 | I35: 1392 | J35: =IF((H35*投标报价汇总表!$H$9<0),0,H35*投标报价汇总表!$H$9) -> 0.00 | K35: 0 | L35: 精品球、饱满、不脱脚
A36: 26 | B36: 704-2-h | C36: 大叶黄杨球C（H100,P120) | D36: 依据图纸所示，以株为单位计量 | E36: 1、挖树穴；2、施肥；3、栽植、立支架、浇水、覆土；4、清理、成活期养护。 | F36: 株 | G36: 6 | H36: 250.3 | I36: 1502 | J36: =IF((H36*投标报价汇总表!$H$9<0),0,H36*投标报价汇总表!$H$9) -> 0.00 | K36: 0 | L36: 精品球、饱满、不脱脚
A37: 27 | B37: 704-2-i | C37: 龟甲冬青（H25,P20) | D37: 依据图纸所示，以m2为单位计量 | E37: 1、挖树穴；2、施肥；3、栽植、立支架、浇水、覆土；4、清理、成活期养护。 | F37: m2 | G37: 53.1 | H37: 154.8 | I37: 8220 | J37: =IF((H37*投标报价汇总表!$H$9<0),0,H37*投标报价汇总表!$H$9) -> 0.00 | K37: 0 | L37: 49株/m2 、杯苗、不脱脚、丰满
A38: 28 | B38: 704-2-j | C38: 美人蕉（H40,P30) | D38: 依据图纸所示，以m2为单位计量 | E38: 1、挖树穴；2、施肥；3、栽植、立支架、浇水、覆土；4、清理、成活期养护。 | F38: m2 | G38: 6.8 | H38: 72.2 | I38: 491 | J38: =IF((H38*投标报价汇总表!$H$9<0),0,H38*投标报价汇总表!$H$9) -> 0.00 | K38: 0 | L38: 36株/m2 、杯苗、不脱脚、丰满
A39: 29 | B39: 704-2-k | C39: 鸢尾（H30,P25) | D39: 依据图纸所示，以m2为单位计量 | E39: 1、挖树穴；2、施肥；3、栽植、立支架、浇水、覆土；4、清理、成活期养护。 | F39: m2 | G39: 1.3 | H39: 76 | I39: 99 | J39: =IF((H39*投标报价汇总表!$H$9<0),0,H39*投标报价汇总表!$H$9) -> 0.00 | K39: 0 | L39: 36株/m2 、杯苗、不脱脚、丰满
A40: 30 | B40: 704-2-l | C40: 大叶栀子（H40,P30) | D40: 依据图纸所示，以m2为单位计量 | E40: 1、挖树穴；2、施肥；3、栽植、立支架、浇水、覆土；4、清理、成活期养护。 | F40: m2 | G40: 160 | H40: 154.8 | I40: 24768 | J40: =IF((H40*投标报价汇总表!$H$9<0),0,H40*投标报价汇总表!$H$9) -> 0.00 | K40: 0 | L40: 49株/m2 、杯苗、不脱脚、丰满
A41: 31 | B41: 704-2-m | C41: 大叶黄杨（H40,P30) | D41: 依据图纸所示，以m2为单位计量 | E41: 1、挖树穴；2、施肥；3、栽植、立支架、浇水、覆土；4、清理、成活期养护。 | F41: m2 | G41: 258.3 | H41: 154.8 | I41: 39985 | J41: =IF((H41*投标报价汇总表!$H$9<0),0,H41*投标报价汇总表!$H$9) -> 0.00 | K41: 0 | L41: 49株/m2 、杯苗、不脱脚、丰满
A42: 32 | B42: 704-2-n | C42: 金森女贞（H40,P30) | D42: 依据图纸所示，以m2为单位计量 | E42: 1、挖树穴；2、施肥；3、栽植、立支架、浇水、覆土；4、清理、成活期养护。 | F42: m2 | G42: 33 | H42: 154.8 | I42: 5108 | J42: =IF((H42*投标报价汇总表!$H$9<0),0,H42*投标报价汇总表!$H$9) -> 0.00 | K42: 0 | L42: 49株/m2 、杯苗、不脱脚、丰满
A43: 33 | B43: 704-2-o | C43: 紫茉莉（H30,P25) | D43: 依据图纸所示，以m2为单位计量 | E43: 1、挖树穴；2、施肥；3、栽植、立支架、浇水、覆土；4、清理、成活期养护。 | F43: m2 | G43: 1.7 | H43: 115 | I43: 196 | J43: =IF((H43*投标报价汇总表!$H$9<0),0,H43*投标报价汇总表!$H$9) -> 0.00 | K43: 0 | L43: 36株/m2 、杯苗、不脱脚、丰满
A44: 34 | B44: 704-2-p | C44: 红花继木（H35,P30) | D44: 依据图纸所示，以m2为单位计量 | E44: 1、挖树穴；2、施肥；3、栽植、立支架、浇水、覆土；4、清理、成活期养护。 | F44: m2 | G44: 158 | H44: 154.8 | I44: 24458 | J44: =IF((H44*投标报价汇总表!$H$9<0),0,H44*投标报价汇总表!$H$9) -> 0.00 | K44: 0 | L44: 49株/m2 、杯苗、不脱脚、丰满
A45: 35 | B45: 704-2-q | C45: 三角梅 | D45: 依据图纸所示，以m2为单位计量 | E45: 1、挖树穴；2、施肥；3、栽植、立支架、浇水、覆土；4、清理、成活期养护。 | F45: m2 | G45: 44.1 | H45: 115 | I45: 5072 | J45: =IF((H45*投标报价汇总表!$H$9<0),0,H45*投标报价汇总表!$H$9) -> 0.00 | K45: 0 | L45: 36株/m2 、杯苗、不脱脚、丰满
A46: 36 | B46: 704-3 | C46: 乔木移植（Ф6-10） | D46: 依据图纸所示，以株为单位计量 | E46: 1、起苗、挖树穴；2、施肥；3、栽植、立支架、浇水、覆土；4、清理、成活期养护。 | F46: 株 | G46: 30 | H46: 168.4 | I46: 5052 | J46: =IF((H46*投标报价汇总表!$H$9<0),0,H46*投标报价汇总表!$H$9) -> 0.00 | K46: 0 | L46: 就地移植
A47: 705 | C47: 庭院建设
A48: 37 | B48: 705-1 | C48: 园路 | D48: 依据图纸所示，以m2为单位计量 | E48: 1、路床整理、2、垫层铺筑；3、路面铺筑、养护。 | F48: m2 | G48: 50 | H48: 245.5 | I48: =G48*H48 -> 12275 | J48: =IF((H48*投标报价汇总表!$H$9<0),0,H48*投标报价汇总表!$H$9) -> 0.00 | K48: =G48*J48 -> 0 | L48: 详见施工图
A49: 38 | B49: 705-2 | C49: 砾石 | D49: 依据图纸所示，以m2为单位计量 | E49: 1、场地清理、开挖、整平；2、废料清理、装卸、运输指定堆放点；3、地面夯实；4、铺设。 | F49: m2 | G49: 34.7 | H49: 73 | I49: 2533 | J49: =IF((H49*投标报价汇总表!$H$9<0),0,H49*投标报价汇总表!$H$9) -> 0.00 | K49: 0 | L49: 详见施工图
A50: 39 | B50: 705-3 | C50: 旗台 | D50: 依据图纸所示，以座为单位计量 | E50: 1、定位、开挖基础；2、模板制作、安装、拆除；3、预制件预制、钢筋绑扎、浇灌混凝土；4、安装旗杆、试用；5、砖体安装、养生。 | F50: 座 | G50: 1 | H50: 27800 | I50: 27800 | J50: =IF((H50*投标报价汇总表!$H$9<0),0,H50*投标报价汇总表!$H$9) -> 0.00 | K50: 0 | L50: 详见施工图
A51: 40 | B51: 705-4 | C51: 绿化供水管 | D51: 依据图纸所示，以项为单位计量 | E51: 1、定线；2、开挖基坑、管槽；3、管道安装、试压；4、回填、试喷 | F51: 项 | G51: 1 | H51: 11980 | I51: 11980 | J51: =IF((H51*投标报价汇总表!$H$9<0),0,H51*投标报价汇总表!$H$9) -> 0.00 | K51: 0 | L51: 详见施工图
A52: 第700章小计 （元） | I52: =SUM(I9:I51) -> 386306 | K52: =SUM(K9:K51) -> 0
